[Event "*** Titled Tuesday Blitz"]
[Site "Chess.com"]
[Date "2021.04.20"]
[Round "1"]
[White "MrChampion_Coach"]
[Black "vovachesss"]
[Result "1-0"]
[WhiteElo "2408"]
[BlackElo "2698"]
[TimeControl "180+1"]
[EndTime "10:06:49 PDT"]
[Termination "MrChampion_Coach won by checkmate"]

1. d4 {[%clk 0:02:59.3]} 1... Nf6 {[%clk 0:02:58]} 2. c4 {[%clk 0:02:58.8]} 2...
c6 {[%clk 0:02:55]} 3. Nf3 {[%clk 0:02:46.1]} 3... d5 {[%clk 0:02:53.5]} 4. Qb3
{[%clk 0:02:46.4]} 4... dxc4 {[%clk 0:02:51.9]} 5. Qxc4 {[%clk 0:02:46.1]} 5...
Bf5 {[%clk 0:02:52.6]} 6. Nc3 {[%clk 0:02:45.4]} 6... e6 {[%clk 0:02:52.8]} 7.
g3 {[%clk 0:02:35.5]} 7... Nbd7 {[%clk 0:02:51.6]} 8. Bg2 {[%clk 0:02:35.2]}
8... Be7 {[%clk 0:02:51.2]} 9. O-O {[%clk 0:02:34.7]} 9... O-O {[%clk
0:02:51.8]} 10. Nh4 {[%clk 0:02:27.3]} 10... Bg4 {[%clk 0:02:47.3]} 11. h3
{[%clk 0:02:23.4]} 11... Bh5 {[%clk 0:02:47.4]} 12. g4 {[%clk 0:02:11]} 12...
Nd5 {[%clk 0:02:22.2]} 13. gxh5 {[%clk 0:01:56.9]} 13... Bxh4 {[%clk 0:02:21.8]}
14. e4 {[%clk 0:01:57.5]} 14... N5b6 {[%clk 0:01:56]} 15. Qe2 {[%clk 0:01:49.7]}
15... e5 {[%clk 0:01:45.3]} 16. Rd1 {[%clk 0:01:43]} 16... exd4 {[%clk 0:01:42]}
17. Rxd4 {[%clk 0:01:40.9]} 17... Qf6 {[%clk 0:01:24.9]} 18. Be3 {[%clk
0:01:34.8]} 18... Bg5 {[%clk 0:01:23.2]} 19. Rad1 {[%clk 0:01:32.6]} 19... Bxe3
{[%clk 0:01:21]} 20. Qxe3 {[%clk 0:01:32]} 20... Nc5 {[%clk 0:00:57.6]} 21. e5
{[%clk 0:01:26.3]} 21... Qe7 {[%clk 0:00:29.2]} 22. f4 {[%clk 0:01:24.4]} 22...
f6 {[%clk 0:00:25.9]} 23. Rd6 {[%clk 0:01:17.1]} 23... Ne6 {[%clk 0:00:19.1]}
24. f5 {[%clk 0:01:16.4]} 24... Ng5 {[%clk 0:00:17.8]} 25. h4 {[%clk 0:01:15.3]}
25... Nf7 {[%clk 0:00:07.5]} 26. Re6 {[%clk 0:01:14.8]} 26... Qb4 {[%clk
0:00:06]} 27. Rd4 {[%clk 0:01:09.3]} 27... Qc5 {[%clk 0:00:04.9]} 28. exf6
{[%clk 0:01:05.7]} 28... Rad8 {[%clk 0:00:03.2]} 29. Rg4 {[%clk 0:00:59.3]}
29... Qxe3+ {[%clk 0:00:03]} 30. Rxe3 {[%clk 0:00:59.5]} 30... Nh6 {[%clk
0:00:01.5]} 31. Rxg7+ {[%clk 0:00:57.4]} 31... Kh8 {[%clk 0:00:02.4]} 32. Ree7
{[%clk 0:00:55.4]} 32... Rxf6 {[%clk 0:00:03]} 33. Rxh7+ {[%clk 0:00:54.9]}
33... Kg8 {[%clk 0:00:03.9]} 34. Reg7+ {[%clk 0:00:54.9]} 34... Kf8 {[%clk
0:00:04.1]} 35. Ne4 {[%clk 0:00:46]} 35... Rd1+ {[%clk 0:00:04]} 36. Kh2 {[%clk
0:00:45.6]} 36... Rxf5 {[%clk 0:00:04.9]} 37. Ng5 {[%clk 0:00:45.7]} 37... Ng4+
{[%clk 0:00:04.7]} 38. Kg3 {[%clk 0:00:45.8]} 38... Nf6 {[%clk 0:00:04.8]} 39.
Ne6+ {[%clk 0:00:45.1]} 39... Ke8 {[%clk 0:00:04.7]} 40. Re7# {[%clk 0:00:46]}
1-0

[Event "*** Titled Tuesday Blitz"]
[Site "Chess.com"]
[Date "2021.04.20"]
[Round "1"]
[White "QuintilianoR"]
[Black "eCztery"]
[Result "1-0"]
[WhiteElo "2709"]
[BlackElo "2392"]
[TimeControl "180+1"]
[EndTime "10:06:51 PDT"]
[Termination "QuintilianoR won by resignation"]

1. d4 {[%clk 0:03:00.3]} 1... Nf6 {[%clk 0:02:57.2]} 2. c4 {[%clk 0:03:00.1]}
2... e6 {[%clk 0:02:56.7]} 3. Nf3 {[%clk 0:03:00]} 3... d5 {[%clk 0:02:56.9]} 4.
Nc3 {[%clk 0:02:59.8]} 4... Bb4 {[%clk 0:02:56.2]} 5. Bg5 {[%clk 0:02:58.8]}
5... Nbd7 {[%clk 0:02:54.2]} 6. e3 {[%clk 0:02:57.8]} 6... c5 {[%clk 0:02:50.6]}
7. cxd5 {[%clk 0:02:57.1]} 7... exd5 {[%clk 0:02:49.7]} 8. Bd3 {[%clk
0:02:56.8]} 8... Qa5 {[%clk 0:02:48.8]} 9. Qc2 {[%clk 0:02:56.3]} 9... c4 {[%clk
0:02:42.3]} 10. Bf5 {[%clk 0:02:55.3]} 10... Bxc3+ {[%clk 0:02:42.6]} 11. bxc3
{[%clk 0:02:55.2]} 11... O-O {[%clk 0:02:42.6]} 12. O-O {[%clk 0:02:54.4]} 12...
Re8 {[%clk 0:02:42.5]} 13. Nd2 {[%clk 0:02:50.2]} 13... g6 {[%clk 0:02:40.7]}
14. Bxd7 {[%clk 0:02:38.6]} 14... Nxd7 {[%clk 0:02:41.6]} 15. h4 {[%clk
0:02:39.3]} 15... Kg7 {[%clk 0:02:31.6]} 16. e4 {[%clk 0:02:32.4]} 16... dxe4
{[%clk 0:02:08.3]} 17. Nxe4 {[%clk 0:02:33.3]} 17... Qf5 {[%clk 0:02:08.1]} 18.
f3 {[%clk 0:02:24.9]} 18... h6 {[%clk 0:02:05.9]} 19. g4 {[%clk 0:02:03.3]}
19... Qd5 {[%clk 0:01:51.1]} 20. Bf4 {[%clk 0:02:01.8]} 20... Nb6 {[%clk
0:01:30.8]} 21. Qd2 {[%clk 0:01:47.3]} 21... Rxe4 {[%clk 0:01:15]} 22. fxe4
{[%clk 0:01:43.6]} 22... Qxe4 {[%clk 0:01:15.9]} 23. Rae1 {[%clk 0:01:40]} 23...
Qd5 {[%clk 0:01:12.6]} 24. Bxh6+ {[%clk 0:01:28.3]} 24... Kh7 {[%clk 0:01:02.6]}
25. Bf8 {[%clk 0:01:17.2]} 25... g5 {[%clk 0:00:59.6]} 26. hxg5 {[%clk
0:00:58.7]} 26... Bxg4 {[%clk 0:00:51.2]} 27. Qh2+ {[%clk 0:00:54.9]} 27... Kg8
{[%clk 0:00:49.9]} 28. Be7 {[%clk 0:00:50.1]} 28... Nd7 {[%clk 0:00:38.4]} 29.
Qh6 {[%clk 0:00:36.9]} 29... Qc6 {[%clk 0:00:03.4]} 30. Bf6 {[%clk 0:00:33.7]}
30... Nxf6 {[%clk 0:00:03.9]} 31. gxf6 {[%clk 0:00:33.7]} 31... Qxf6 {[%clk
0:00:01.2]} 32. Rxf6 {[%clk 0:00:32.7]} 1-0

[Event "*** Titled Tuesday Blitz"]
[Site "Chess.com"]
[Date "2021.04.20"]
[Round "1"]
[White "chegueps"]
[Black "gmcorrales"]
[Result "1-0"]
[WhiteElo "2469"]
[BlackElo "2812"]
[TimeControl "180+1"]
[EndTime "10:06:52 PDT"]
[Termination "chegueps won by checkmate"]

1. d4 {[%clk 0:02:58.5]} 1... Nf6 {[%clk 0:02:59.6]} 2. Nf3 {[%clk 0:02:57.4]}
2... g6 {[%clk 0:02:59.7]} 3. Nc3 {[%clk 0:02:58]} 3... d5 {[%clk 0:02:59.7]} 4.
Bf4 {[%clk 0:02:58.7]} 4... Bg7 {[%clk 0:03:00]} 5. Qd2 {[%clk 0:02:58.8]} 5...
O-O {[%clk 0:03:00.6]} 6. Bh6 {[%clk 0:02:58.7]} 6... Bxh6 {[%clk 0:03:00.8]} 7.
Qxh6 {[%clk 0:02:59.6]} 7... Qd6 {[%clk 0:03:01.5]} 8. Ng5 {[%clk 0:02:43.7]}
8... Rd8 {[%clk 0:02:39.7]} 9. h4 {[%clk 0:02:26.6]} 9... Nbd7 {[%clk
0:02:26.4]} 10. h5 {[%clk 0:02:21.9]} 10... Nf8 {[%clk 0:02:26.9]} 11. hxg6
{[%clk 0:02:15.3]} 11... fxg6 {[%clk 0:02:27.8]} 12. e3 {[%clk 0:02:05.3]} 12...
c5 {[%clk 0:02:18.3]} 13. O-O-O {[%clk 0:01:34.4]} 13... Bf5 {[%clk 0:02:15.4]}
14. f3 {[%clk 0:01:27.3]} 14... cxd4 {[%clk 0:02:15.5]} 15. exd4 {[%clk
0:01:17.7]} 15... Rac8 {[%clk 0:00:27.7]} 16. g4 {[%clk 0:01:12.7]} 16... Rxc3
{[%clk 0:00:20.2]} 17. gxf5 {[%clk 0:00:57.8]} 17... Rdc8 {[%clk 0:00:15]} 18.
bxc3 {[%clk 0:00:32.6]} 18... Qa3+ {[%clk 0:00:14.8]} 19. Kd2 {[%clk 0:00:33.3]}
19... Qxc3+ {[%clk 0:00:14.5]} 20. Ke2 {[%clk 0:00:34]} 20... Qxc2+ {[%clk
0:00:08.3]} 21. Rd2 {[%clk 0:00:34.1]} 21... Qc4+ {[%clk 0:00:07.3]} 22. Kf2
{[%clk 0:00:32.3]} 22... Qc3 {[%clk 0:00:07.8]} 23. Nxh7 {[%clk 0:00:20.3]}
23... N6xh7 {[%clk 0:00:02.3]} 24. fxg6 {[%clk 0:00:20.7]} 24... Rc6 {[%clk
0:00:01.1]} 25. gxh7+ {[%clk 0:00:20.2]} 25... Kf7 {[%clk 0:00:01.7]} 26. Qxf8+
{[%clk 0:00:19.7]} 26... Kxf8 {[%clk 0:00:02.6]} 27. h8=Q+ {[%clk 0:00:20.3]}
27... Kf7 {[%clk 0:00:03.5]} 28. Rh7+ {[%clk 0:00:17]} 28... Ke6 {[%clk
0:00:03.8]} 29. Qe5+ {[%clk 0:00:17.7]} 29... Kd7 {[%clk 0:00:03.4]} 30. Bh3+
{[%clk 0:00:18.4]} 30... Kd8 {[%clk 0:00:02.5]} 31. Qxe7# {[%clk 0:00:18.4]} 1-0

[Event "*** Titled Tuesday Blitz"]
[Site "Chess.com"]
[Date "2021.04.20"]
[Round "1"]
[White "zurzan"]
[Black "woodhy"]
[Result "0-1"]
[WhiteElo "2005"]
[BlackElo "2482"]
[TimeControl "180+1"]
[EndTime "10:06:52 PDT"]
[Termination "woodhy won on time"]

1. f4 {[%clk 0:03:00.9]} 1... e6 {[%clk 0:02:59.7]} 2. Nf3 {[%clk 0:03:00.9]}
2... d5 {[%clk 0:02:59.8]} 3. g3 {[%clk 0:03:01.4]} 3... c5 {[%clk 0:03:00.1]}
4. Bg2 {[%clk 0:03:02.3]} 4... Nc6 {[%clk 0:03:00.8]} 5. O-O {[%clk 0:03:03.1]}
5... Nf6 {[%clk 0:03:01.1]} 6. d3 {[%clk 0:03:04]} 6... d4 {[%clk 0:03:00.7]} 7.
c3 {[%clk 0:03:04.9]} 7... Be7 {[%clk 0:02:59.9]} 8. e4 {[%clk 0:03:01.2]} 8...
dxe3 {[%clk 0:02:59.1]} 9. Bxe3 {[%clk 0:03:01.4]} 9... O-O {[%clk 0:02:59.5]}
10. h3 {[%clk 0:03:01]} 10... Qc7 {[%clk 0:02:57.2]} 11. Qe2 {[%clk 0:02:56.7]}
11... b6 {[%clk 0:02:56.6]} 12. Rd1 {[%clk 0:02:54.9]} 12... Rd8 {[%clk
0:02:55.6]} 13. Qf2 {[%clk 0:02:51.9]} 13... Bb7 {[%clk 0:02:50.4]} 14. a4
{[%clk 0:02:50.6]} 14... Rd7 {[%clk 0:02:50]} 15. Na3 {[%clk 0:02:45.6]} 15...
Rad8 {[%clk 0:02:37]} 16. Ne1 {[%clk 0:02:45.1]} 16... Na5 {[%clk 0:02:30.4]}
17. Nb5 {[%clk 0:02:42.3]} 17... Qb8 {[%clk 0:02:28.9]} 18. c4 {[%clk
0:01:58.6]} 18... Nxc4 {[%clk 0:02:17.4]} 19. Bxb7 {[%clk 0:01:48]} 19... Qxb7
{[%clk 0:02:18.3]} 20. Nc3 {[%clk 0:01:43.4]} 20... Nxe3 {[%clk 0:02:04.7]} 21.
Qxe3 {[%clk 0:01:44.3]} 21... Nd5 {[%clk 0:02:03.1]} 22. Nxd5 {[%clk 0:01:43.5]}
22... Rxd5 {[%clk 0:02:04]} 23. Kh2 {[%clk 0:01:20.8]} 23... Bf6 {[%clk
0:01:59.7]} 24. Rab1 {[%clk 0:01:18.8]} 24... Qa6 {[%clk 0:01:43.9]} 25. b3
{[%clk 0:01:14.7]} 25... h5 {[%clk 0:01:18.7]} 26. g4 {[%clk 0:01:13.6]} 26...
hxg4 {[%clk 0:00:58.6]} 27. hxg4 {[%clk 0:01:14.5]} 27... g5 {[%clk 0:00:58.3]}
28. f5 {[%clk 0:00:27.7]} 28... exf5 {[%clk 0:00:52.6]} 29. gxf5 {[%clk
0:00:28.6]} 29... Rxf5 {[%clk 0:00:52]} 30. Nf3 {[%clk 0:00:27.2]} 30... Qb7
{[%clk 0:00:47.9]} 31. Rf1 {[%clk 0:00:15.4]} 31... Qd7 {[%clk 0:00:44.3]} 32.
Rbe1 {[%clk 0:00:13.1]} 32... Qxd3 {[%clk 0:00:42.1]} 33. Qxd3 {[%clk
0:00:13.4]} 33... Rxd3 {[%clk 0:00:42.6]} 34. Re8+ {[%clk 0:00:09.7]} 34... Kg7
{[%clk 0:00:42]} 35. Nd2 {[%clk 0:00:05.9]} 35... Rxd2+ {[%clk 0:00:40.8]} 36.
Kg1 {[%clk 0:00:05.9]} 36... Bd4+ {[%clk 0:00:39.9]} 0-1

[Event "*** Titled Tuesday Blitz"]
[Site "Chess.com"]
[Date "2021.04.20"]
[Round "1"]
[White "bsnsun"]
[Black "ZaphenathPaneah"]
[Result "1-0"]
[WhiteElo "2475"]
[BlackElo "1853"]
[TimeControl "180+1"]
[EndTime "10:06:53 PDT"]
[Termination "bsnsun won by resignation"]

1. Nf3 {[%clk 0:02:50.7]} 1... d5 {[%clk 0:02:59]} 2. c4 {[%clk 0:02:50.2]} 2...
e6 {[%clk 0:02:58.9]} 3. g3 {[%clk 0:02:49.9]} 3... Nf6 {[%clk 0:02:58.8]} 4.
Bg2 {[%clk 0:02:50.5]} 4... Be7 {[%clk 0:02:59.2]} 5. O-O {[%clk 0:02:51]} 5...
O-O {[%clk 0:02:59.7]} 6. b3 {[%clk 0:02:51.2]} 6... c5 {[%clk 0:02:50.3]} 7. e3
{[%clk 0:02:50.9]} 7... Nc6 {[%clk 0:02:49.2]} 8. Bb2 {[%clk 0:02:50.9]} 8... b6
{[%clk 0:02:05.2]} 9. cxd5 {[%clk 0:02:36.1]} 9... exd5 {[%clk 0:02:04.9]} 10.
d4 {[%clk 0:02:36.3]} 10... Bg4 {[%clk 0:01:55.9]} 11. dxc5 {[%clk 0:02:23.5]}
11... bxc5 {[%clk 0:01:55.2]} 12. h3 {[%clk 0:02:24]} 12... Bh5 {[%clk
0:01:54.9]} 13. g4 {[%clk 0:02:13]} 13... Bg6 {[%clk 0:01:54.4]} 14. Nc3 {[%clk
0:02:13.5]} 14... Qd7 {[%clk 0:01:49.2]} 15. Nh4 {[%clk 0:02:04.1]} 15... Rad8
{[%clk 0:01:44.9]} 16. Nxg6 {[%clk 0:02:00.5]} 16... hxg6 {[%clk 0:01:41.7]} 17.
Qe2 {[%clk 0:02:00.5]} 17... d4 {[%clk 0:01:38.1]} 18. Rad1 {[%clk 0:01:52.3]}
18... Qe6 {[%clk 0:01:34.1]} 19. exd4 {[%clk 0:01:51.1]} 19... Nxd4 {[%clk
0:01:30]} 20. Qxe6 {[%clk 0:01:50.8]} 20... Nxe6 {[%clk 0:01:27.6]} 21. Ne2
{[%clk 0:01:37.7]} 21... Ng5 {[%clk 0:01:05.6]} 22. f4 {[%clk 0:01:33.4]} 22...
Nge4 {[%clk 0:01:05.6]} 23. g5 {[%clk 0:01:30.8]} 23... Nd5 {[%clk 0:01:00.9]}
24. Bxe4 {[%clk 0:01:29.2]} 24... Ne3 {[%clk 0:01:01.4]} 25. Rxd8 {[%clk
0:01:28.7]} 25... Rxd8 {[%clk 0:01:01.6]} 26. Re1 {[%clk 0:01:20.7]} 26... Rd2
{[%clk 0:01:01.1]} 27. Bc3 {[%clk 0:01:18.5]} 27... Rxa2 {[%clk 0:01:00.8]} 28.
Kf2 {[%clk 0:01:18]} 28... Nf5 {[%clk 0:00:56.7]} 29. Bxf5 {[%clk 0:01:17.3]}
29... gxf5 {[%clk 0:00:56.7]} 30. Rd1 {[%clk 0:01:15.1]} 30... c4 {[%clk
0:00:30.8]} 31. bxc4 {[%clk 0:01:13.3]} 31... Bc5+ {[%clk 0:00:30.8]} 32. Kf3
{[%clk 0:01:08.7]} 32... Kf8 {[%clk 0:00:28.9]} 33. Rd8+ {[%clk 0:01:03.8]}
33... Ke7 {[%clk 0:00:28.8]} 34. Rc8 {[%clk 0:01:04.4]} 34... Bb6 {[%clk
0:00:20.5]} 35. Bxg7 {[%clk 0:00:50.3]} 35... Ra3+ {[%clk 0:00:19.7]} 36. Kg2
{[%clk 0:00:47.3]} 36... Ra2 {[%clk 0:00:19.5]} 37. Kf3 {[%clk 0:00:35.3]} 37...
Ra3+ {[%clk 0:00:18.6]} 38. Nc3 {[%clk 0:00:35.9]} 38... Ba5 {[%clk 0:00:16.6]}
39. Bf8+ {[%clk 0:00:36.1]} 39... Kd7 {[%clk 0:00:16.3]} 40. Bxa3 {[%clk
0:00:37]} 40... Kxc8 {[%clk 0:00:16.7]} 41. Nb5 {[%clk 0:00:36.2]} 41... a6
{[%clk 0:00:16.2]} 42. Nd6+ {[%clk 0:00:36.7]} 42... Kd7 {[%clk 0:00:16.1]} 43.
Nxf7 {[%clk 0:00:37.3]} 43... Kc6 {[%clk 0:00:17]} 44. g6 {[%clk 0:00:37.4]} 1-0

[Event "*** Titled Tuesday Blitz"]
[Site "Chess.com"]
[Date "2021.04.20"]
[Round "1"]
[White "Didici"]
[Black "fyall777"]
[Result "1-0"]
[WhiteElo "2613"]
[BlackElo "2314"]
[TimeControl "180+1"]
[EndTime "10:06:55 PDT"]
[Termination "Didici won on time"]

1. e4 {[%clk 0:02:54.8]} 1... c5 {[%clk 0:02:58.9]} 2. Nf3 {[%clk 0:02:48.5]}
2... d6 {[%clk 0:02:58.9]} 3. Nc3 {[%clk 0:02:42.9]} 3... e5 {[%clk 0:02:57.8]}
4. Bc4 {[%clk 0:02:39.7]} 4... Be7 {[%clk 0:02:57.9]} 5. d3 {[%clk 0:02:39.8]}
5... a6 {[%clk 0:02:56.8]} 6. a3 {[%clk 0:02:36.4]} 6... Nf6 {[%clk 0:02:55.5]}
7. Bg5 {[%clk 0:02:34.7]} 7... O-O {[%clk 0:02:54.7]} 8. Bxf6 {[%clk 0:02:34.2]}
8... Bxf6 {[%clk 0:02:54.4]} 9. Nd2 {[%clk 0:02:33.3]} 9... Be6 {[%clk
0:02:53.3]} 10. Nf1 {[%clk 0:02:31]} 10... Bg5 {[%clk 0:02:51.7]} 11. h4 {[%clk
0:02:26.5]} 11... Bh6 {[%clk 0:02:51.8]} 12. Ne3 {[%clk 0:02:11.6]} 12... Bxe3
{[%clk 0:02:50.2]} 13. fxe3 {[%clk 0:02:12.5]} 13... Nc6 {[%clk 0:02:35.4]} 14.
Qd2 {[%clk 0:02:01.6]} 14... b5 {[%clk 0:02:30.1]} 15. Bd5 {[%clk 0:01:56.1]}
15... Rc8 {[%clk 0:02:23.2]} 16. Qf2 {[%clk 0:01:44]} 16... b4 {[%clk 0:02:09]}
17. Ne2 {[%clk 0:01:40.3]} 17... Bxd5 {[%clk 0:02:04.5]} 18. exd5 {[%clk
0:01:41.2]} 18... Ne7 {[%clk 0:02:03.9]} 19. e4 {[%clk 0:01:38.9]} 19... f5
{[%clk 0:01:56.3]} 20. Qe3 {[%clk 0:01:38.4]} 20... f4 {[%clk 0:01:48.8]} 21.
Qf3 {[%clk 0:01:37.1]} 21... a5 {[%clk 0:01:42.6]} 22. a4 {[%clk 0:01:33.8]}
22... c4 {[%clk 0:01:40.8]} 23. O-O {[%clk 0:01:15.1]} 23... Ng6 {[%clk
0:01:27.9]} 24. h5 {[%clk 0:01:13.7]} 24... Nh4 {[%clk 0:01:27.2]} 25. Qg4
{[%clk 0:01:13.8]} 25... Rf6 {[%clk 0:01:12.9]} 26. Qxh4 {[%clk 0:01:11.8]}
26... cxd3 {[%clk 0:01:11]} 27. cxd3 {[%clk 0:01:11.5]} 27... Rc2 {[%clk
0:01:10.9]} 28. Rf2 {[%clk 0:01:08]} 28... Rxb2 {[%clk 0:01:10.4]} 29. d4 {[%clk
0:01:07.8]} 29... Qb6 {[%clk 0:01:01.6]} 30. Rc1 {[%clk 0:01:02.4]} 30... h6
{[%clk 0:01:00.5]} 31. Qg4 {[%clk 0:00:56]} 31... exd4 {[%clk 0:00:56.6]} 32.
Nxf4 {[%clk 0:00:50.8]} 32... Rxf2 {[%clk 0:00:53.8]} 33. Rc8+ {[%clk
0:00:48.2]} 33... Kh7 {[%clk 0:00:53]} 34. Qg6+ {[%clk 0:00:29]} 1-0

[Event "*** Titled Tuesday Blitz"]
[Site "Chess.com"]
[Date "2021.04.20"]
[Round "1"]
[White "TST2014"]
[Black "ybruned"]
[Result "1-0"]
[WhiteElo "2639"]
[BlackElo "2337"]
[TimeControl "180+1"]
[EndTime "10:06:57 PDT"]
[Termination "TST2014 won by resignation"]

1. d4 {[%clk 0:03:00.9]} 1... b6 {[%clk 0:03:00.4]} 2. e4 {[%clk 0:02:59.5]}
2... Bb7 {[%clk 0:03:00.8]} 3. Bd3 {[%clk 0:02:54.6]} 3... e6 {[%clk 0:03:01]}
4. Nf3 {[%clk 0:02:54]} 4... d5 {[%clk 0:03:01.4]} 5. Nbd2 {[%clk 0:02:47.5]}
5... c5 {[%clk 0:02:59.9]} 6. c3 {[%clk 0:02:46.9]} 6... Nf6 {[%clk 0:02:56.6]}
7. Qe2 {[%clk 0:02:44]} 7... dxe4 {[%clk 0:02:37.6]} 8. Nxe4 {[%clk 0:02:42.5]}
8... Nbd7 {[%clk 0:02:24.6]} 9. O-O {[%clk 0:02:34.2]} 9... Be7 {[%clk
0:02:15.4]} 10. Rd1 {[%clk 0:02:30.4]} 10... cxd4 {[%clk 0:02:10.1]} 11. Nxd4
{[%clk 0:02:25.6]} 11... O-O {[%clk 0:01:49.5]} 12. Ng5 {[%clk 0:02:24.5]} 12...
Nc5 {[%clk 0:01:13]} 13. Ndxe6 {[%clk 0:02:12.2]} 13... Nxe6 {[%clk 0:01:07.5]}
14. Nxe6 {[%clk 0:02:08.8]} 14... fxe6 {[%clk 0:01:03.7]} 15. Bxh7+ {[%clk
0:02:06.6]} 15... Nxh7 {[%clk 0:01:02.7]} 16. Qxe6+ {[%clk 0:02:03.8]} 16... Rf7
{[%clk 0:00:59.2]} 17. Rxd8+ {[%clk 0:02:03.6]} 17... Rxd8 {[%clk 0:01:00.1]}
18. Be3 {[%clk 0:02:00.4]} 18... Bd5 {[%clk 0:00:58.4]} 19. Qg6 {[%clk 0:01:56]}
19... Nf6 {[%clk 0:00:55.5]} 20. b3 {[%clk 0:01:50.3]} 20... Be4 {[%clk
0:00:55.1]} 21. Qg3 {[%clk 0:01:43.8]} 21... Bc5 {[%clk 0:00:52.2]} 22. Bxc5
{[%clk 0:01:37.8]} 22... bxc5 {[%clk 0:00:53.1]} 23. c4 {[%clk 0:01:37.8]} 23...
Rfd7 {[%clk 0:00:53]} 24. h3 {[%clk 0:01:33.5]} 24... Bh7 {[%clk 0:00:48.5]} 25.
Qe5 {[%clk 0:01:28.8]} 25... Re8 {[%clk 0:00:46.9]} 26. Qxc5 {[%clk 0:01:28.2]}
26... Ne4 {[%clk 0:00:40.8]} 27. Qc6 {[%clk 0:01:25.4]} 27... Rde7 {[%clk
0:00:40.9]} 28. f3 {[%clk 0:01:23]} 28... Ng3 {[%clk 0:00:37.9]} 29. Qd6 {[%clk
0:01:19.3]} 29... Ne2+ {[%clk 0:00:37.2]} 30. Kf2 {[%clk 0:01:16.8]} 30... Kh8
{[%clk 0:00:37.8]} 31. Re1 {[%clk 0:01:15.6]} 31... Bf5 {[%clk 0:00:34.2]} 32.
Qd2 {[%clk 0:01:05.8]} 32... Bg6 {[%clk 0:00:30]} 33. Qg5 {[%clk 0:01:01.5]}
33... Kh7 {[%clk 0:00:29.2]} 34. c5 {[%clk 0:00:58.4]} 34... Re5 {[%clk
0:00:28.3]} 35. Qh4+ {[%clk 0:00:55.9]} 35... Rh5 {[%clk 0:00:28.8]} 36. Qc4
{[%clk 0:00:55.8]} 36... Rhe5 {[%clk 0:00:26]} 37. c6 {[%clk 0:00:55.2]} 37...
Bf5 {[%clk 0:00:20.4]} 38. c7 {[%clk 0:00:50.5]} 38... Bc8 {[%clk 0:00:19.9]}
39. b4 {[%clk 0:00:48.2]} 39... a6 {[%clk 0:00:19]} 40. a4 {[%clk 0:00:48]}
40... Kh8 {[%clk 0:00:17.5]} 41. b5 {[%clk 0:00:47.7]} 41... axb5 {[%clk
0:00:17.1]} 42. axb5 {[%clk 0:00:48.6]} 42... R5e6 {[%clk 0:00:16.7]} 43. b6
{[%clk 0:00:47.9]} 43... Rxb6 {[%clk 0:00:16.8]} 44. Rxe2 {[%clk 0:00:46.5]}
44... Rxe2+ {[%clk 0:00:17]} 45. Qxe2 {[%clk 0:00:46.1]} 45... Ba6 {[%clk
0:00:17.7]} 46. Qe8+ {[%clk 0:00:45.4]} 1-0